[Event "*** Titled Tuesday Blitz"]
[Site "Chess.com"]
[Date "2019.10.01"]
[Round "6"]
[White "1stSecond"]
[Black "I-Mesquita"]
[Result "1-0"]
[WhiteElo "2855"]
[BlackElo "2657"]
[TimeControl "180+2"]
[EndTime "14:27:20 PDT"]
[Termination "1stSecond won by checkmate"]

1. d4 {[%clk 0:03:01.9]} 1... Nf6 {[%clk 0:02:59.2]} 2. c4 {[%clk 0:03:03]} 2...
e6 {[%clk 0:02:59.7]} 3. Nf3 {[%clk 0:03:02.5]} 3... Bb4+ {[%clk 0:02:58.1]} 4.
Nbd2 {[%clk 0:02:56.6]} 4... a5 {[%clk 0:02:58.9]} 5. g3 {[%clk 0:02:56.1]} 5...
O-O {[%clk 0:02:59.5]} 6. Bg2 {[%clk 0:02:57.2]} 6... d5 {[%clk 0:02:57.7]} 7.
O-O {[%clk 0:02:55.5]} 7... b6 {[%clk 0:02:58]} 8. cxd5 {[%clk 0:02:50.2]} 8...
exd5 {[%clk 0:02:56.9]} 9. Ne5 {[%clk 0:02:50.6]} 9... Bb7 {[%clk 0:02:52.9]}
10. Ndf3 {[%clk 0:02:49.9]} 10... Ne4 {[%clk 0:02:40.8]} 11. Qc2 {[%clk
0:02:38.4]} 11... Bd6 {[%clk 0:02:35.5]} 12. Bf4 {[%clk 0:02:38.9]} 12... Nd7
{[%clk 0:02:24.6]} 13. Nc6 {[%clk 0:02:29.6]} 13... Bxc6 {[%clk 0:02:16]} 14.
Bxd6 {[%clk 0:02:28]} 14... cxd6 {[%clk 0:01:42.3]} 15. Qxc6 {[%clk 0:02:28.3]}
15... Ndf6 {[%clk 0:01:42.4]} 16. Bh3 {[%clk 0:02:24.3]} 16... Qe8 {[%clk
0:01:31.2]} 17. Rfc1 {[%clk 0:02:21.5]} 17... Qe7 {[%clk 0:01:17.3]} 18. a4
{[%clk 0:02:18.4]} 18... Rfe8 {[%clk 0:01:08.4]} 19. Rc2 {[%clk 0:02:11.4]}
19... Rab8 {[%clk 0:00:59.4]} 20. Ra3 {[%clk 0:02:10.9]} 20... h6 {[%clk
0:00:52.8]} 21. Rb3 {[%clk 0:02:07.9]} 21... g5 {[%clk 0:00:52.7]} 22. Bf5
{[%clk 0:02:08.5]} 22... Kg7 {[%clk 0:00:48.8]} 23. Rxb6 {[%clk 0:02:01]} 23...
Rxb6 {[%clk 0:00:47.9]} 24. Qxb6 {[%clk 0:02:02.9]} 24... g4 {[%clk 0:00:44.7]}
25. Nh4 {[%clk 0:01:55.7]} 25... Qd8 {[%clk 0:00:29.3]} 26. Qxd8 {[%clk
0:01:38]} 26... Rxd8 {[%clk 0:00:31.2]} 27. Bxe4 {[%clk 0:01:39.4]} 27... Nxe4
{[%clk 0:00:27.3]} 28. Nf5+ {[%clk 0:01:40.5]} 28... Kh7 {[%clk 0:00:14.2]} 29.
Ne3 {[%clk 0:01:39.6]} 29... Nf6 {[%clk 0:00:11.1]} 30. Rc7 {[%clk 0:01:37.4]}
30... Kg6 {[%clk 0:00:11.1]} 31. Rb7 {[%clk 0:01:34.9]} 31... Rc8 {[%clk
0:00:11.8]} 32. Rb5 {[%clk 0:01:29.5]} 32... Rc1+ {[%clk 0:00:13.1]} 33. Kg2
{[%clk 0:01:30.5]} 33... h5 {[%clk 0:00:14.3]} 34. Rxa5 {[%clk 0:01:28.1]} 34...
Ne4 {[%clk 0:00:15.7]} 35. Nxd5 {[%clk 0:01:21.4]} 35... Ng5 {[%clk 0:00:16.4]}
36. Nf4+ {[%clk 0:01:21.4]} 36... Kh6 {[%clk 0:00:17.8]} 37. Rf5 {[%clk
0:01:02.5]} 37... Rc2 {[%clk 0:00:11.4]} 38. b4 {[%clk 0:01:03.1]} 38... Ra2
{[%clk 0:00:11.1]} 39. a5 {[%clk 0:01:03.8]} 39... Ra4 {[%clk 0:00:10.6]} 40.
Rb5 {[%clk 0:01:02.7]} 40... Ne4 {[%clk 0:00:11.4]} 41. Rxh5+ {[%clk 0:01:02.8]}
41... Kg7 {[%clk 0:00:13]} 42. Rb5 {[%clk 0:00:56.5]} 42... Nc3 {[%clk
0:00:13.2]} 43. Rb7 {[%clk 0:00:55.2]} 43... Na2 {[%clk 0:00:14]} 44. Nd5 {[%clk
0:00:52.8]} 44... Ra3 {[%clk 0:00:12.6]} 45. h3 {[%clk 0:00:51.2]} 45... gxh3+
{[%clk 0:00:13.4]} 46. Kxh3 {[%clk 0:00:53.1]} 46... Nc1 {[%clk 0:00:15]} 47. e4
{[%clk 0:00:53.4]} 47... Nd3 {[%clk 0:00:15.9]} 48. Kg2 {[%clk 0:00:41.5]} 48...
Ra2 {[%clk 0:00:16.9]} 49. Kf3 {[%clk 0:00:42.7]} 49... Ne1+ {[%clk 0:00:16.7]}
50. Ke3 {[%clk 0:00:38.1]} 50... Ng2+ {[%clk 0:00:16]} 51. Kd3 {[%clk
0:00:39.2]} 51... Ne1+ {[%clk 0:00:17]} 52. Kc4 {[%clk 0:00:40.2]} 52... Nc2
{[%clk 0:00:17.1]} 53. Nc3 {[%clk 0:00:38.6]} 53... Ra3 {[%clk 0:00:17.9]} 54.
Nb5 {[%clk 0:00:36.3]} 54... Rf3 {[%clk 0:00:15.9]} 55. Nxd6 {[%clk 0:00:34.9]}
55... Rxf2 {[%clk 0:00:17.2]} 56. a6 {[%clk 0:00:35.6]} 56... Ne3+ {[%clk
0:00:18.3]} 57. Kc5 {[%clk 0:00:36.4]} 57... Rc2+ {[%clk 0:00:19.3]} 58. Kb5
{[%clk 0:00:37.5]} 58... Ra2 {[%clk 0:00:20.1]} 59. a7 {[%clk 0:00:37.8]} 59...
Nc2 {[%clk 0:00:22]} 60. Rxf7+ {[%clk 0:00:37.6]} 60... Kg6 {[%clk 0:00:22.6]}
61. Kc5 {[%clk 0:00:38.8]} 61... Ra3 {[%clk 0:00:23]} 62. b5 {[%clk 0:00:39.8]}
62... Rc3+ {[%clk 0:00:23.4]} 63. Kb6 {[%clk 0:00:41]} 63... Ra3 {[%clk
0:00:23.5]} 64. Rf8 {[%clk 0:00:41.5]} 64... Nxd4 {[%clk 0:00:20.2]} 65. a8=Q
{[%clk 0:00:42.8]} 65... Rd3 {[%clk 0:00:20.4]} 66. Qe8+ {[%clk 0:00:43.1]}
66... Kg5 {[%clk 0:00:21.7]} 67. Qe7+ {[%clk 0:00:43.4]} 67... Kg4 {[%clk
0:00:22.3]} 68. Qh4# {[%clk 0:00:44.9]} 1-0

[Event "*** Titled Tuesday Blitz"]
[Site "Chess.com"]
[Date "2019.10.01"]
[Round "6"]
[White "joppie2"]
[Black "Korchmar_Vasiliy"]
[Result "1-0"]
[WhiteElo "2859"]
[BlackElo "2681"]
[TimeControl "180+2"]
[EndTime "14:27:42 PDT"]
[Termination "joppie2 won on time"]

1. e4 {[%clk 0:02:57.6]} 1... c5 {[%clk 0:03:01]} 2. Nf3 {[%clk 0:02:55.6]} 2...
d6 {[%clk 0:03:02.5]} 3. Nc3 {[%clk 0:02:53.8]} 3... Nc6 {[%clk 0:03:02.1]} 4.
d4 {[%clk 0:02:53.4]} 4... cxd4 {[%clk 0:03:03.2]} 5. Nxd4 {[%clk 0:02:55.3]}
5... Nf6 {[%clk 0:03:04.5]} 6. Nd5 {[%clk 0:02:56.9]} 6... Nxd5 {[%clk 0:02:35]}
7. exd5 {[%clk 0:02:57.4]} 7... Qa5+ {[%clk 0:02:35.5]} 8. Bd2 {[%clk
0:02:58.8]} 8... Qxd5 {[%clk 0:02:36.3]} 9. Nb5 {[%clk 0:03:00.4]} 9... Qe6+
{[%clk 0:02:18.3]} 10. Be2 {[%clk 0:03:01.3]} 10... Qd7 {[%clk 0:02:20.2]} 11.
c4 {[%clk 0:03:00.1]} 11... e6 {[%clk 0:02:17.8]} 12. Bf4 {[%clk 0:02:58.7]}
12... e5 {[%clk 0:02:15.9]} 13. Be3 {[%clk 0:02:54.4]} 13... Be7 {[%clk
0:02:16.7]} 14. O-O {[%clk 0:02:48.6]} 14... O-O {[%clk 0:02:17.9]} 15. Qd2
{[%clk 0:02:45.3]} 15... f5 {[%clk 0:02:16.3]} 16. f3 {[%clk 0:02:35.8]} 16...
a6 {[%clk 0:02:04.2]} 17. Nc3 {[%clk 0:02:36.5]} 17... Qd8 {[%clk 0:01:48.1]}
18. Nd5 {[%clk 0:02:36.5]} 18... Be6 {[%clk 0:01:48.6]} 19. Bb6 {[%clk
0:02:36.8]} 19... Qd7 {[%clk 0:01:40.6]} 20. Rad1 {[%clk 0:02:37.7]} 20... Bd8
{[%clk 0:01:37.7]} 21. Bf2 {[%clk 0:02:34.8]} 21... Kh8 {[%clk 0:01:39]} 22. b4
{[%clk 0:02:33.3]} 22... Rc8 {[%clk 0:01:37.2]} 23. Nb6 {[%clk 0:02:25]} 23...
Bxb6 {[%clk 0:01:38.2]} 24. Bxb6 {[%clk 0:02:26.9]} 24... Qf7 {[%clk 0:01:35.5]}
25. Rc1 {[%clk 0:02:23.4]} 25... d5 {[%clk 0:01:31.4]} 26. b5 {[%clk 0:02:20.5]}
26... axb5 {[%clk 0:01:21.5]} 27. cxb5 {[%clk 0:02:21]} 27... Ne7 {[%clk
0:01:23.1]} 28. f4 {[%clk 0:02:01]} 28... Ng6 {[%clk 0:01:23.6]} 29. fxe5 {[%clk
0:02:01.3]} 29... Nxe5 {[%clk 0:01:25.5]} 30. Bd4 {[%clk 0:02:02]} 30... Rxc1
{[%clk 0:01:22.2]} 31. Rxc1 {[%clk 0:02:00.6]} 31... Nc4 {[%clk 0:01:24.1]} 32.
Qf4 {[%clk 0:01:59.8]} 32... Bd7 {[%clk 0:01:22.2]} 33. Rc3 {[%clk 0:01:58.8]}
33... Re8 {[%clk 0:01:12.9]} 34. Bxc4 {[%clk 0:01:35]} 34... dxc4 {[%clk
0:01:14.8]} 35. Rg3 {[%clk 0:01:36.2]} 35... Rg8 {[%clk 0:01:13.1]} 36. h4
{[%clk 0:01:31.2]} 36... Bxb5 {[%clk 0:01:10.2]} 37. Qe5 {[%clk 0:01:13.7]}
37... Bc6 {[%clk 0:01:07.4]} 38. Qf4 {[%clk 0:01:03]} 38... b5 {[%clk 0:00:58]}
39. a3 {[%clk 0:01:02.2]} 39... Bd5 {[%clk 0:00:49.9]} 40. Rg5 {[%clk
0:01:02.5]} 40... Be4 {[%clk 0:00:48.6]} 41. h5 {[%clk 0:00:58]} 41... h6 {[%clk
0:00:49.7]} 42. Rg6 {[%clk 0:00:54.4]} 42... Kh7 {[%clk 0:00:51.2]} 43. Qe5
{[%clk 0:00:49.6]} 43... Qd7 {[%clk 0:00:47.1]} 44. Rd6 {[%clk 0:00:46.9]} 44...
Qf7 {[%clk 0:00:46.3]} 45. Rg6 {[%clk 0:00:44.6]} 45... Qd7 {[%clk 0:00:47.5]}
46. Kh2 {[%clk 0:00:40]} 46... Bd3 {[%clk 0:00:44.8]} 47. Qf4 {[%clk 0:00:36.8]}
47... Be4 {[%clk 0:00:34.2]} 48. Be5 {[%clk 0:00:37.1]} 48... Qf7 {[%clk
0:00:29.9]} 49. Qg3 {[%clk 0:00:37.9]} 49... Qe7 {[%clk 0:00:27.2]} 50. Qf4
{[%clk 0:00:34.5]} 50... Qf7 {[%clk 0:00:27.7]} 51. Bc3 {[%clk 0:00:35.1]} 51...
Qd7 {[%clk 0:00:27.6]} 52. Qe5 {[%clk 0:00:34.2]} 52... Bd3 {[%clk 0:00:23.3]}
53. Qf4 {[%clk 0:00:23.8]} 53... Be4 {[%clk 0:00:22.8]} 54. Bb2 {[%clk 0:00:23]}
54... Qf7 {[%clk 0:00:21.7]} 55. Bd4 {[%clk 0:00:21.9]} 55... Qd7 {[%clk
0:00:22.7]} 56. Be3 {[%clk 0:00:21.9]} 56... Rc8 {[%clk 0:00:15.2]} 57. Qg3
{[%clk 0:00:10.2]} 57... c3 {[%clk 0:00:11.1]} 58. Bf4 {[%clk 0:00:11.8]} 58...
c2 {[%clk 0:00:10.7]} 59. Rxh6+ {[%clk 0:00:11.8]} 59... Kg8 {[%clk 0:00:07.2]}
60. Rg6 {[%clk 0:00:13.2]} 60... c1=Q {[%clk 0:00:08]} 61. Bxc1 {[%clk
0:00:14.3]} 61... Rxc1 {[%clk 0:00:09.9]} 62. h6 {[%clk 0:00:15.4]} 62... Rc2
{[%clk 0:00:11.1]} 63. Rxg7+ {[%clk 0:00:16.2]} 1-0

[Event "*** Titled Tuesday Blitz"]
[Site "Chess.com"]
[Date "2019.10.01"]
[Round "6"]
[White "Witik"]
[Black "valeriocarnicelli"]
[Result "1-0"]
[WhiteElo "2646"]
[BlackElo "2491"]
[TimeControl "180+2"]
[EndTime "14:27:43 PDT"]
[Termination "Witik won by resignation"]

1. d4 {[%clk 0:03:01.9]} 1... Nf6 {[%clk 0:03:00.6]} 2. Bf4 {[%clk 0:03:02.2]}
2... d6 {[%clk 0:03:00.6]} 3. Nf3 {[%clk 0:03:00.7]} 3... g6 {[%clk 0:03:01.9]}
4. Nc3 {[%clk 0:03:01.4]} 4... Bg7 {[%clk 0:03:03]} 5. e4 {[%clk 0:03:02.6]}
5... O-O {[%clk 0:03:03.5]} 6. h3 {[%clk 0:03:03.6]} 6... Nbd7 {[%clk
0:03:04.5]} 7. Bh2 {[%clk 0:03:03.9]} 7... c5 {[%clk 0:03:02.2]} 8. e5 {[%clk
0:02:58.8]} 8... Ne8 {[%clk 0:03:02.8]} 9. dxc5 {[%clk 0:02:51.4]} 9... dxe5
{[%clk 0:03:02.8]} 10. Nxe5 {[%clk 0:02:47.9]} 10... Nef6 {[%clk 0:02:44.1]} 11.
Nd3 {[%clk 0:02:39.2]} 11... e5 {[%clk 0:02:41.9]} 12. Be2 {[%clk 0:02:34.6]}
12... e4 {[%clk 0:02:42.3]} 13. Ne5 {[%clk 0:02:31.5]} 13... e3 {[%clk
0:02:36.1]} 14. fxe3 {[%clk 0:02:18.5]} 14... Re8 {[%clk 0:02:21.3]} 15. O-O
{[%clk 0:02:15.1]} 15... Nxc5 {[%clk 0:02:10.7]} 16. Qxd8 {[%clk 0:02:04.4]}
16... Rxd8 {[%clk 0:02:12.6]} 17. Bc4 {[%clk 0:01:55.2]} 17... Be6 {[%clk
0:02:12.5]} 18. Bxe6 {[%clk 0:01:55.3]} 18... Nxe6 {[%clk 0:02:13.2]} 19. Rad1
{[%clk 0:01:53.7]} 19... a6 {[%clk 0:02:01.5]} 20. a4 {[%clk 0:01:50.5]} 20...
Kf8 {[%clk 0:01:56.7]} 21. Nc4 {[%clk 0:01:48.1]} 21... Rxd1 {[%clk 0:01:46.6]}
22. Rxd1 {[%clk 0:01:48.2]} 22... Kg8 {[%clk 0:01:27]} 23. Be5 {[%clk
0:01:42.9]} 23... Nc5 {[%clk 0:01:17.2]} 24. a5 {[%clk 0:01:34.7]} 24... Re8
{[%clk 0:01:13.9]} 25. Nd5 {[%clk 0:01:15.5]} 25... Nfe4 {[%clk 0:01:00.6]} 26.
Bxg7 {[%clk 0:01:12.8]} 26... Kxg7 {[%clk 0:01:02.5]} 27. Ndb6 {[%clk
0:01:04.5]} 27... Re6 {[%clk 0:00:53.9]} 28. b4 {[%clk 0:01:01.2]} 28... Nc3
{[%clk 0:00:47.3]} 29. Rd7 {[%clk 0:00:47.7]} 29... Nxd7 {[%clk 0:00:47]} 30.
Nxd7 {[%clk 0:00:48]} 30... Re4 {[%clk 0:00:29.5]} 31. Ndb6 {[%clk 0:00:40.3]}
31... Nb5 {[%clk 0:00:29.5]} 32. Kf2 {[%clk 0:00:40]} 32... f5 {[%clk
0:00:28.8]} 33. Ke2 {[%clk 0:00:37.9]} 33... h5 {[%clk 0:00:19.5]} 34. Kd3
{[%clk 0:00:37.7]} 34... h4 {[%clk 0:00:20.3]} 35. Nd5 {[%clk 0:00:34.1]} 35...
Re8 {[%clk 0:00:19.1]} 36. Ncb6 {[%clk 0:00:34.5]} 36... g5 {[%clk 0:00:13.5]}
37. c4 {[%clk 0:00:36.1]} 37... Nd6 {[%clk 0:00:15]} 38. Nc7 {[%clk 0:00:35.1]}
38... Re7 {[%clk 0:00:11.7]} 39. Ncd5 {[%clk 0:00:35.4]} 39... Re5 {[%clk
0:00:12.1]} 40. Nd7 {[%clk 0:00:33.7]} 40... Re8 {[%clk 0:00:11.5]} 41. N7b6
{[%clk 0:00:23.4]} 41... Nf7 {[%clk 0:00:11.4]} 42. Kd4 {[%clk 0:00:19.3]} 42...
g4 {[%clk 0:00:12.1]} 43. Nf4 {[%clk 0:00:19.1]} 43... Ng5 {[%clk 0:00:12.2]}
44. Nbd5 {[%clk 0:00:15.4]} 44... Re4+ {[%clk 0:00:11.8]} 45. Kc5 {[%clk
0:00:14.4]} 45... Kh6 {[%clk 0:00:12.6]} 46. Kb6 {[%clk 0:00:15.2]} 46... Ne6
{[%clk 0:00:08.2]} 47. Kxb7 {[%clk 0:00:16.1]} 47... Nxf4 {[%clk 0:00:08.8]} 48.
exf4 {[%clk 0:00:16.4]} 48... g3 {[%clk 0:00:08.8]} 49. c5 {[%clk 0:00:15.5]}
49... Rd4 {[%clk 0:00:10.1]} 50. c6 {[%clk 0:00:14]} 50... Rxd5 {[%clk
0:00:02.9]} 51. c7 {[%clk 0:00:14]} 51... Rd7 {[%clk 0:00:03.8]} 52. Kb8 {[%clk
0:00:14.2]} 52... Rd4 {[%clk 0:00:03.6]} 53. c8=Q {[%clk 0:00:12.4]} 53... Rxb4+
{[%clk 0:00:05.5]} 54. Ka7 {[%clk 0:00:13.4]} 54... Rxf4 {[%clk 0:00:06.8]} 55.
Qxa6+ {[%clk 0:00:12.4]} 55... Kg5 {[%clk 0:00:06]} 56. Qb7 {[%clk 0:00:11.5]}
56... Rf2 {[%clk 0:00:07]} 57. a6 {[%clk 0:00:12.3]} 57... f4 {[%clk 0:00:08.4]}
58. Kb8 {[%clk 0:00:12.8]} 58... f3 {[%clk 0:00:09.7]} 59. Qd5+ {[%clk
0:00:11.1]} 59... Kf4 {[%clk 0:00:10.4]} 60. Qd4+ {[%clk 0:00:12]} 60... Kf5
{[%clk 0:00:11.8]} 61. gxf3 {[%clk 0:00:10.4]} 61... Rxf3 {[%clk 0:00:12]} 62.
a7 {[%clk 0:00:11.1]} 62... Rf4 {[%clk 0:00:12.6]} 63. Qd5+ {[%clk 0:00:12.1]}
63... Kg6 {[%clk 0:00:12.5]} 64. a8=Q {[%clk 0:00:14]} 64... Rf8+ {[%clk
0:00:13.2]} 65. Ka7 {[%clk 0:00:14.2]} 1-0

[Event "*** Titled Tuesday Blitz"]
[Site "Chess.com"]
[Date "2019.10.01"]
[Round "6"]
[White "Rsnr"]
[Black "Sanan_Sjugirov"]
[Result "0-1"]
[WhiteElo "2765"]
[BlackElo "2951"]
[TimeControl "180+2"]
[EndTime "14:28:03 PDT"]
[Termination "Sanan_Sjugirov won by resignation"]

1. d4 {[%clk 0:03:01.9]} 1... Nf6 {[%clk 0:02:59.9]} 2. c4 {[%clk 0:03:03.2]}
2... e6 {[%clk 0:02:59.4]} 3. Nf3 {[%clk 0:03:04.1]} 3... b6 {[%clk 0:03:00]} 4.
a3 {[%clk 0:03:05.2]} 4... Bb7 {[%clk 0:02:56.5]} 5. Nc3 {[%clk 0:03:06.4]} 5...
d5 {[%clk 0:02:54.2]} 6. Bg5 {[%clk 0:03:07.4]} 6... Be7 {[%clk 0:02:54.7]} 7.
Qa4+ {[%clk 0:03:08.6]} 7... Nbd7 {[%clk 0:02:52]} 8. Bxf6 {[%clk 0:03:09.3]}
8... Bxf6 {[%clk 0:02:53]} 9. cxd5 {[%clk 0:03:11]} 9... exd5 {[%clk 0:02:54.9]}
10. g3 {[%clk 0:03:12.3]} 10... O-O {[%clk 0:02:53.5]} 11. Bh3 {[%clk
0:03:13.6]} 11... Nb8 {[%clk 0:02:30]} 12. O-O {[%clk 0:03:14.6]} 12... Re8
{[%clk 0:02:22.2]} 13. Rfd1 {[%clk 0:03:02.6]} 13... c6 {[%clk 0:02:19.8]} 14.
Rac1 {[%clk 0:02:57.3]} 14... Na6 {[%clk 0:02:18.5]} 15. e3 {[%clk 0:02:51.4]}
15... Nc7 {[%clk 0:02:19.1]} 16. Ne2 {[%clk 0:02:50.7]} 16... Ne6 {[%clk
0:02:07.9]} 17. Bg2 {[%clk 0:02:41.8]} 17... a5 {[%clk 0:02:03.8]} 18. Qc2
{[%clk 0:02:03.9]} 18... Rc8 {[%clk 0:02:01.1]} 19. Nf4 {[%clk 0:01:55.2]} 19...
Nxf4 {[%clk 0:01:51.3]} 20. gxf4 {[%clk 0:01:57.1]} 20... c5 {[%clk 0:01:50.2]}
21. dxc5 {[%clk 0:01:55.6]} 21... bxc5 {[%clk 0:01:43.9]} 22. b3 {[%clk
0:01:12.7]} 22... Qb6 {[%clk 0:01:39.2]} 23. Nd2 {[%clk 0:00:59]} 23... g6
{[%clk 0:01:29.1]} 24. Qd3 {[%clk 0:00:37.8]} 24... Qe6 {[%clk 0:01:21.8]} 25.
Qb5 {[%clk 0:00:33.3]} 25... Ba8 {[%clk 0:01:05]} 26. Rxc5 {[%clk 0:00:29.7]}
26... Rxc5 {[%clk 0:01:06]} 27. Qxc5 {[%clk 0:00:31.6]} 27... d4 {[%clk
0:01:07.4]} 28. e4 {[%clk 0:00:30.8]} 28... Qg4 {[%clk 0:01:04.5]} 29. Qc1
{[%clk 0:00:18.8]} 29... Qxf4 {[%clk 0:01:01.3]} 30. Nc4 {[%clk 0:00:20]} 30...
Qh4 {[%clk 0:00:52.2]} 31. f3 {[%clk 0:00:17.3]} 31... Bg5 {[%clk 0:00:46.3]}
32. Qc2 {[%clk 0:00:18.7]} 32... Bf4 {[%clk 0:00:46.6]} 33. Bf1 {[%clk
0:00:20.2]} 33... Rd8 {[%clk 0:00:38.5]} 34. Qf2 {[%clk 0:00:15.8]} 34... Qf6
{[%clk 0:00:37.2]} 35. Bd3 {[%clk 0:00:11.1]} 35... Bc6 {[%clk 0:00:36.3]} 36.
Kh1 {[%clk 0:00:11.6]} 36... a4 {[%clk 0:00:36.2]} 37. b4 {[%clk 0:00:12.6]}
37... Bb5 {[%clk 0:00:34.3]} 38. Nb2 {[%clk 0:00:13.4]} 38... Be3 {[%clk
0:00:33.6]} 39. Qg3 {[%clk 0:00:13.7]} 39... Bd7 {[%clk 0:00:23]} 40. b5 {[%clk
0:00:11.7]} 40... Rc8 {[%clk 0:00:22.8]} 41. Nxa4 {[%clk 0:00:12.2]} 41... Bf4
{[%clk 0:00:20.8]} 42. Qf2 {[%clk 0:00:11.7]} 42... Kg7 {[%clk 0:00:13.2]} 43.
Rb1 {[%clk 0:00:10.1]} 43... Be3 {[%clk 0:00:10.3]} 44. Qg3 {[%clk 0:00:10.7]}
44... h5 {[%clk 0:00:11.7]} 45. Qg2 {[%clk 0:00:07.1]} 45... h4 {[%clk
0:00:12.5]} 46. Nb2 {[%clk 0:00:06.8]} 46... Be6 {[%clk 0:00:11.6]} 47. b6
{[%clk 0:00:07.2]} 47... Ba2 {[%clk 0:00:12]} 48. Ra1 {[%clk 0:00:08.3]} 48...
Bb3 {[%clk 0:00:11.7]} 49. b7 {[%clk 0:00:07.7]} 49... Rb8 {[%clk 0:00:12.8]}
50. Nc4 {[%clk 0:00:07.3]} 50... Rxb7 {[%clk 0:00:11.6]} 51. Nxe3 {[%clk
0:00:08.7]} 51... dxe3 {[%clk 0:00:12.7]} 52. Re1 {[%clk 0:00:10.6]} 52... Be6
{[%clk 0:00:12.8]} 53. Qe2 {[%clk 0:00:10.3]} 53... Rb3 {[%clk 0:00:11.8]} 54.
a4 {[%clk 0:00:05.6]} 54... Qd4 {[%clk 0:00:10.7]} 55. Rd1 {[%clk 0:00:07.2]}
55... Rb2 {[%clk 0:00:10.5]} 56. Qf1 {[%clk 0:00:07]} 56... Qe5 {[%clk
0:00:09.8]} 57. f4 {[%clk 0:00:08.6]} 57... Qh5 {[%clk 0:00:09.4]} 58. Re1
{[%clk 0:00:08.6]} 58... h3 {[%clk 0:00:06.1]} 59. Rxe3 {[%clk 0:00:08.8]} 59...
Qc5 {[%clk 0:00:07.3]} 60. Re2 {[%clk 0:00:08.2]} 60... Rb3 {[%clk 0:00:07.8]}
61. Rd2 {[%clk 0:00:07.2]} 61... Qe3 {[%clk 0:00:08.6]} 62. Rd1 {[%clk
0:00:08.7]} 62... Bg4 {[%clk 0:00:08.9]} 63. Be2 {[%clk 0:00:04.5]} 0-1

[Event "*** Titled Tuesday Blitz"]
[Site "Chess.com"]
[Date "2019.10.01"]
[Round "6"]
[White "Vuk2000"]
[Black "Roman_Ovetchkin"]
[Result "1-0"]
[WhiteElo "2809"]
[BlackElo "2655"]
[TimeControl "180+2"]
[EndTime "14:29:01 PDT"]
[Termination "Vuk2000 won on time"]

1. e4 {[%clk 0:03:01.9]} 1... c6 {[%clk 0:03:00.8]} 2. d4 {[%clk 0:03:02.8]}
2... d5 {[%clk 0:03:02.7]} 3. Nd2 {[%clk 0:03:02.9]} 3... dxe4 {[%clk
0:03:03.1]} 4. Nxe4 {[%clk 0:03:04.8]} 4... Nf6 {[%clk 0:03:04.4]} 5. Nxf6+
{[%clk 0:03:05.9]} 5... exf6 {[%clk 0:03:06.3]} 6. c3 {[%clk 0:03:07.1]} 6...
Bd6 {[%clk 0:03:06.3]} 7. Bd3 {[%clk 0:03:08.2]} 7... O-O {[%clk 0:03:06.6]} 8.
Qc2 {[%clk 0:03:09.4]} 8... Re8+ {[%clk 0:03:07.7]} 9. Ne2 {[%clk 0:03:09.8]}
9... h5 {[%clk 0:03:07.3]} 10. O-O {[%clk 0:03:06.5]} 10... Nd7 {[%clk
0:03:07.9]} 11. Be3 {[%clk 0:03:03.6]} 11... Nf8 {[%clk 0:03:06]} 12. Qd2 {[%clk
0:02:59.2]} 12... h4 {[%clk 0:03:01.2]} 13. h3 {[%clk 0:02:53.4]} 13... Ng6
{[%clk 0:02:50.6]} 14. Nf4 {[%clk 0:02:49.8]} 14... Ne7 {[%clk 0:02:44.9]} 15.
Ne2 {[%clk 0:02:35.8]} 15... Nd5 {[%clk 0:02:41.7]} 16. Rae1 {[%clk 0:02:26.7]}
16... Nxe3 {[%clk 0:02:13.7]} 17. fxe3 {[%clk 0:02:27.4]} 17... Qe7 {[%clk
0:02:05.7]} 18. Nf4 {[%clk 0:02:23.5]} 18... f5 {[%clk 0:01:39.9]} 19. Qe2
{[%clk 0:02:06.1]} 19... Qg5 {[%clk 0:01:33.5]} 20. Bc4 {[%clk 0:01:54.8]} 20...
Re7 {[%clk 0:01:21.9]} 21. Rf3 {[%clk 0:01:50.3]} 21... Bd7 {[%clk 0:01:21.2]}
22. Qf2 {[%clk 0:01:45.4]} 22... Rae8 {[%clk 0:01:18.2]} 23. Kh1 {[%clk
0:01:32.2]} 23... b5 {[%clk 0:00:31.5]} 24. Bb3 {[%clk 0:01:30.5]} 24... c5
{[%clk 0:00:24.8]} 25. Bd5 {[%clk 0:01:19.6]} 25... cxd4 {[%clk 0:00:23.5]} 26.
cxd4 {[%clk 0:01:20.1]} 26... Kf8 {[%clk 0:00:12.6]} 27. Rg1 {[%clk 0:01:08.8]}
27... Qh6 {[%clk 0:00:12]} 28. Qd2 {[%clk 0:00:52.8]} 28... Bxf4 {[%clk
0:00:10.6]} 29. exf4 {[%clk 0:00:50.6]} 29... Qd6 {[%clk 0:00:11.5]} 30. Bb3
{[%clk 0:00:45]} 30... Re2 {[%clk 0:00:12.2]} 31. Qc3 {[%clk 0:00:41.3]} 31...
b4 {[%clk 0:00:08.2]} 32. Qd3 {[%clk 0:00:39.8]} 32... g6 {[%clk 0:00:07.5]} 33.
Bc4 {[%clk 0:00:36.8]} 33... Kg7 {[%clk 0:00:06.4]} 34. d5 {[%clk 0:00:33]}
34... Rxb2 {[%clk 0:00:07]} 35. Qd4+ {[%clk 0:00:32.8]} 35... Qf6 {[%clk
0:00:08.2]} 36. Qxa7 {[%clk 0:00:34]} 36... Re7 {[%clk 0:00:06.7]} 37. Qc5
{[%clk 0:00:32]} 37... Be8 {[%clk 0:00:06.9]} 38. d6 {[%clk 0:00:30.9]} 38...
Re4 {[%clk 0:00:07.7]} 39. Rd3 {[%clk 0:00:25.6]} 39... Bd7 {[%clk 0:00:06.7]}
40. Bb5 {[%clk 0:00:24.5]} 40... Qd8 {[%clk 0:00:04.8]} 41. Bxd7 {[%clk
0:00:23.8]} 41... Qxd7 {[%clk 0:00:05.8]} 42. Rd4 {[%clk 0:00:19.6]} 42... Ree2
{[%clk 0:00:05.5]} 43. Rd3 {[%clk 0:00:18.8]} 43... Rxa2 {[%clk 0:00:06.3]} 44.
Qxb4 {[%clk 0:00:19.5]} 44... Reb2 {[%clk 0:00:05.8]} 45. Qc3+ {[%clk
0:00:20.3]} 45... Kh7 {[%clk 0:00:06.8]} 46. Qf6 {[%clk 0:00:21]} 46... Rd2
{[%clk 0:00:06.8]} 47. Qxh4+ {[%clk 0:00:20.7]} 47... Kg7 {[%clk 0:00:06.8]} 48.
Qg3 {[%clk 0:00:21.9]} 48... Re2 {[%clk 0:00:05]} 49. Rd5 {[%clk 0:00:21.3]}
49... Rec2 {[%clk 0:00:05.3]} 50. Qd3 {[%clk 0:00:21.8]} 50... Kh7 {[%clk
0:00:03.2]} 51. Re5 {[%clk 0:00:18.9]} 51... Rd2 {[%clk 0:00:04]} 52. Re7 {[%clk
0:00:10.8]} 52... Rxd3 {[%clk 0:00:04.3]} 53. Rxd7 {[%clk 0:00:12.3]} 53... Kg7
{[%clk 0:00:06]} 54. Re1 {[%clk 0:00:13.6]} 54... Rdd2 {[%clk 0:00:05.9]} 55.
Ree7 {[%clk 0:00:05.3]} 55... Rxg2 {[%clk 0:00:06.7]} 56. Rxf7+ {[%clk
0:00:06.7]} 56... Kg8 {[%clk 0:00:08]} 57. Rg7+ {[%clk 0:00:08]} 57... Kh8
{[%clk 0:00:09]} 58. Rh7+ {[%clk 0:00:08.9]} 58... Kg8 {[%clk 0:00:10.3]} 59.
Rdg7+ {[%clk 0:00:09.9]} 59... Kf8 {[%clk 0:00:11.5]} 60. Re7 {[%clk 0:00:10.9]}
60... Rh2+ {[%clk 0:00:11.2]} 61. Kg1 {[%clk 0:00:12.1]} 61... Kg8 {[%clk
0:00:11.2]} 62. Rhg7+ {[%clk 0:00:12.8]} 62... Kh8 {[%clk 0:00:10.4]} 63. Rxg6
{[%clk 0:00:10.2]} 63... Rhd2 {[%clk 0:00:09.8]} 64. Kh1 {[%clk 0:00:05.9]}
64... Rh2+ {[%clk 0:00:08.4]} 65. Kg1 {[%clk 0:00:07]} 65... Rhd2 {[%clk
0:00:10.2]} 66. Kf1 {[%clk 0:00:08.4]} 66... Rd1+ {[%clk 0:00:10.3]} 67. Re1
{[%clk 0:00:08.3]} 67... Rdd2 {[%clk 0:00:11.7]} 68. Kg1 {[%clk 0:00:05.9]}
68... Kh7 {[%clk 0:00:12.4]} 69. Rg5 {[%clk 0:00:05.2]} 69... Rxd6 {[%clk
0:00:13.1]} 70. Rxf5 {[%clk 0:00:06.3]} 70... Rdd2 {[%clk 0:00:14]} 71. Rg5
{[%clk 0:00:07.1]} 71... Rh2 {[%clk 0:00:14]} 72. Rg3 {[%clk 0:00:07.5]} 72...
Rhd2 {[%clk 0:00:14.2]} 73. f5 {[%clk 0:00:06.6]} 73... Rf2 {[%clk 0:00:14.9]}
74. Re4 {[%clk 0:00:06.8]} 1-0